bitfinex/quotes_SOLUSD_20250531
["timestamp","ask_amount","ask_price","bid_price","bid_amount"]
[1748668414408,32.57795643,155.28,155.23,21.83489902]
[1748668414812,32.57795643,155.28,155.21,10.24]
[1748668414813,10.74305741,155.28,155.24,21.83489902]
[1748668415105,17.18318202,155.28,155.24,21.83489902]
[1748668415290,17.18318202,155.28,155.25,21.83489902]
[1748668415604,10.74305741,155.28,155.25,21.83489902]
[1748668415978,39.01797975,155.28,155.21,16.68284599]
[1748668416178,21.83489902,155.26,155.22,21.83489902]
[1748668416373,21.83489902,155.26,155.21,32.07489902]
[1748668416579,21.83489902,155.25,155.21,10.24]
[1748668416988,6.44163875,155.24,155.21,10.24]
[1748668418484,6.44163875,155.24,155.17,10.24]
[1748668418485,21.83489902,155.23,155.17,10.24]
[1748668418788,23.34599902,155.23,155.19,21.83489902]
[1748668419309,21.83489902,155.2,155.13,21.83489902]
[1748668419610,21.83489902,155.18,155.14,21.83489902]
[1748668419786,21.83489902,155.19,155.14,21.83489902]
[1748668420402,6.44412939,155.18,155.14,21.83489902]
[1748668423087,28.27902841,155.18,155.14,21.83489902]
[1748668423289,6.44412939,155.18,155.14,21.83489902]
[1748668423511,6.44412939,155.18,155.15,21.83489902]
[1748668428580,6.44412939,155.18,155.14,21.83489902]
[1748668428581,28.27902841,155.18,155.14,21.83489902]
[1748668428713,6.44412939,155.18,155.15,21.83489902]
[1748668430830,16.10823475,155.21,155.16,21.83489902]
[1748668431014,37.94313377,155.21,155.16,21.83489902]
[1748668431241,21.83489902,155.2,155.16,21.83489902]
[1748668432353,21.83489902,155.2,155.15,21.83489902]
[1748668433073,6.44371415,155.19,155.15,21.83489902]
[1748668433441,28.27836311,155.2,155.15,28.28019189]
[1748668433769,28.27836311,155.2,155.16,21.83489902]
[1748668434268,6.44346409,155.2,155.16,21.83489902]
[1748668439653,28.27836311,155.2,155.16,21.83489902]
[1748668444090,148.4111,155.23,155.19,21.83489902]
[1748668444402,154.85322248,155.23,155.2,21.83489902]
[1748668444968,154.85322248,155.23,155.19,21.83489902]
[1748668445171,21.83489902,155.22,155.18,21.83489902]
[1748668446156,6.44288383,155.21,155.18,21.83489902]
[1748668446896,28.27778285,155.21,155.17,10.24]
[1748668447627,28.27778285,155.21,155.17,32.07489902]
[1748668448794,28.27778285,155.21,155.17,21.83489902]
[1748668448999,21.83489902,155.2,155.15,10.24]
[1748668449200,21.83489902,155.2,155.16,21.83489902]
[1748668450817,28.27778285,155.21,155.15,10.24]
[1748668451155,28.27778285,155.21,155.16,21.83489902]
[1748668451509,21.83489902,155.18,155.15,10.24]
[1748668452142,23.34379902,155.17,155.12,21.83489902]
[1748668453197,6.44496004,155.16,155.11,10.24]
[1748668453504,6.44496004,155.16,155.12,21.83489902]
[1748668454217,6.44496004,155.16,155.13,21.83489902]
[1748668456663,6.44496004,155.16,155.12,21.83489902]
[1748668457659,6.44496004,155.16,155.11,16.68696807]
[1748668457851,6.44496004,155.16,155.12,21.83489902]
[1748668458243,21.83489902,155.13,155.09,21.83489902]
[1748668459261,6.44662197,155.12,155.09,21.83489902]
[1748668460154,21.83489902,155.13,155.09,21.83489902]
[1748668461446,21.83489902,155.13,155.08,21.83489902]
[1748668462147,21.83489902,155.13,155.09,21.83489902]
[1748668462443,16.1134386,155.15,155.09,21.83489902]
[1748668462444,21.83489902,155.14,155.09,21.83489902]
[1748668462845,16.1134386,155.15,155.1,21.83489902]
[1748668462846,28.28027446,155.15,155.1,21.83489902]
[1748668463046,28.28027446,155.15,155.11,21.83489902]
[1748668463261,28.28027446,155.15,155.1,21.83489902]
[1748668463465,21.83489902,155.14,155.1,21.83489902]
[1748668464368,28.28110542,155.13,155.09,21.83489902]
[1748668468460,6.4462064,155.13,155.09,21.83489902]
[1748668469073,28.28110542,155.13,155.09,21.83489902]
[1748668470960,21.83489902,155.14,155.1,21.83489902]
[1748668471970,6.4462064,155.13,155.1,21.83489902]
[1748668472779,6.4462064,155.13,155.09,21.83489902]
[1748668479289,21.83489902,155.12,155.07,10.24]
[1748668479587,21.83489902,155.12,155.07,32.07489902]
[1748668479966,44.39662143,155.13,155.09,21.83489902]
[1748668480179,28.28110542,155.13,155.09,21.83489902]
[1748668481386,28.28110542,155.13,155.08,21.83489902]
[1748668483187,6.4462064,155.13,155.08,21.83489902]
[1748668483389,28.28110542,155.13,155.08,21.83489902]
[1748668488000,28.28110542,155.13,155.08,28.28304493]
[1748668489990,28.28110542,155.13,155.08,21.83489902]
[1748668491809,21.83489902,155.12,155.07,10.24]
[1748668492006,21.83489902,155.12,155.07,38.52345172]
[1748668492307,6.4462064,155.13,155.07,38.52345172]
[1748668492308,28.28110542,155.13,155.08,21.83489902]
[1748668495897,20.49042082,155.13,155.08,14.04421442]
[1748668497211,6.4462064,155.13,155.09,14.04421442]
[1748668500308,6.4462064,155.13,155.07,16.68844143]
[1748668500487,6.4462064,155.13,155.09,14.04421442]
[1748668500692,20.49042082,155.13,155.08,14.04421442]
[1748668501391,36.60593683,155.13,155.08,14.04421442]
[1748668501686,15.60831442,155.12,155.07,24.28421442]
[1748668502109,6.44703758,155.11,155.07,24.28421442]
[1748668505612,6.44703758,155.11,155.07,14.04421442]
[1748668505820,20.491252,155.11,155.06,14.04421442]
[1748668507109,6.44703758,155.11,155.07,14.04421442]
[1748668507506,6.44703758,155.11,155.08,14.04421442]
[1748668509117,6.44703758,155.11,155.07,14.04421442]
[1748668512319,6.44703758,155.11,155.08,14.04421442]
[1748668515615,6.44703758,155.11,155.07,14.04421442]
[1748668521630,6.44703758,155.11,155.05,10.24]
[1748668521814,20.491252,155.11,155.06,14.04421442]
[1748668522010,6.44703758,155.11,155.07,14.04421442]
[1748668522732,20.491252,155.11,155.06,14.04421442]
[1748668523120,20.491252,155.11,155.06,20.49332282]
[1748668523433,6.44703758,155.11,155.07,14.04421442]
[1748668523640,6.44703758,155.11,155.08,14.04421442]
[1748668523811,6.44703758,155.11,155.07,14.04421442]
[1748668524422,20.491252,155.11,155.06,14.04421442]
[1748668527144,6.44703758,155.11,155.06,14.04421442]
[1748668528928,14.04421442,155.07,155.03,2.53848853]
[1748668529229,14.04421442,155.06,155.03,2.53848853]
[1748668530431,15.59101442,155.07,155.03,2.53848853]
[1748668531266,6.44911647,155.06,155.03,2.53848853]
[1748668532945,1.5468,155.07,155.03,16.58270295]
[1748668533145,6.44867827,155.08,155.05,14.04421442]
[1748668533462,6.44867827,155.08,155.04,14.04421442]
[1748668533644,20.49289269,155.08,155.04,14.04421442]
[1748668534546,20.49289269,155.08,155.03,16.58270295]
[1748668534737,14.04421442,155.06,155.03,2.53848853]
[1748668535835,15.61391442,155.05,155.03,2.53848853]
[1748668536063,14.04421442,155.04,155.03,2.53848853]
[1748668536240,20.49416282,155.04,155.03,2.53848853]
[1748668538876,26.0,155.0,154.98,3.34756232]
[1748668539050,14.04421442,154.99,154.98,3.34756232]
[1748668539472,14.04421442,154.99,154.94,14.04421442]
[1748668540175,6.45202916,154.99,154.95,14.04421442]
[1748668540382,20.49624358,154.99,154.94,14.04421442]
[1748668541964,28.43609609,154.99,154.94,21.98406693]
[1748668542790,21.98406693,154.98,154.93,21.98406693]
[1748668542957,28.43689824,154.98,154.93,21.98406693]
[1748668543581,21.98406693,154.97,154.92,21.98406693]
[1748668543758,21.98406693,154.96,154.91,10.24]
[1748668544061,21.98406693,154.96,154.91,32.22406693]
[1748668544256,21.98406693,154.95,154.91,10.24]
[1748668544488,21.98406693,154.94,154.89,26.0]
[1748668544670,21.98406693,154.93,154.88,21.98406693]
[1748668544868,21.98406693,154.92,154.87,58.22406693]
[1748668545073,6.45369474,154.95,154.9,21.98406693]
[1748668545273,28.43776167,154.95,154.9,21.98406693]
[1748668545492,186.4,154.96,154.9,21.98406693]
[1748668545672,146.9,154.96,154.92,21.98406693]
[1748668545874,168.88406693,154.96,154.91,21.98406693]
[1748668546274,21.98406693,154.95,154.9,21.98406693]
[1748668546472,21.98406693,154.95,154.91,21.98406693]
[1748668546675,146.9,154.96,154.91,21.98406693]
[1748668546995,168.88406693,154.96,154.9,6.45577792]
[1748668547299,146.9,154.96,154.91,21.98406693]
[1748668547595,168.88406693,154.96,154.91,21.98406693]
[1748668548275,175.33736694,154.96,154.91,21.98406693]
[1748668548596,168.88406693,154.96,154.91,21.98406693]
[1748668549175,175.33747611,154.96,154.91,21.98406693]
[1748668550296,175.33747611,154.96,154.89,6.45619471]
[1748668550600,175.33747611,154.96,154.91,21.98406693]
[1748668553098,175.33747611,154.96,154.91,28.43936624]
[1748668553779,175.33747611,154.96,154.89,6.45619471]
[1748668553974,175.33747611,154.96,154.91,21.98406693]
[1748668554589,21.98406693,154.95,154.9,21.98406693]
[1748668554999,28.43799938,154.95,154.9,21.98406693]
[1748668555298,21.98406693,154.94,154.9,21.98406693]
[1748668555501,28.43799938,154.95,154.9,21.98406693]
[1748668555806,6.45393245,154.95,154.91,21.98406693]
[1748668556394,146.9,154.96,154.93,21.98406693]
[1748668556793,168.88406693,154.96,154.91,28.43939319]
[1748668557014,146.9,154.96,154.92,21.98406693]
[1748668557317,153.35351694,154.96,154.92,21.98406693]
[1748668557514,175.33758387,154.96,154.88,18.64964886]
[1748668557685,21.98406693,154.94,154.9,21.98406693]
[1748668558210,153.35351694,154.96,154.88,21.98406693]
[1748668558211,21.98406693,154.93,154.88,21.98406693]
[1748668559290,21.98406693,154.93,154.87,36.24]
[1748668559291,21.98406693,154.91,154.87,10.24]
[1748668559498,21.98406693,154.89,154.86,0.03142851]
[1748668560228,28.44042893,154.89,154.86,0.03142851]
[1748668561000,21.98406693,154.88,154.86,0.03142851]
[1748668561827,28.44042893,154.89,154.86,0.03142851]
[1748668562031,6.45592921,154.9,154.86,0.03142851]
[1748668562234,39.52,154.91,154.86,22.01549544]
[1748668562235,21.98406693,154.91,154.86,22.01549544]
[1748668562531,28.43948574,154.91,154.87,21.98406693]
[1748668563026,21.98406693,154.9,154.86,22.01549544]
[1748668563530,21.98406693,154.9,154.86,0.03142851]
[1748668563931,6.45541881,154.91,154.86,0.03142851]
[1748668563932,21.98406693,154.89,154.86,0.03142851]
[1748668564117,6.45661157,154.88,154.86,0.03142851]
[1748668564432,21.98406693,154.87,154.86,0.03142851]
[1748668566807,28.4410954,154.87,154.86,0.03142851]
[1748668567519,21.98406693,154.87,154.86,0.03142851]
[1748668567727,28.4410954,154.87,154.86,0.03142851]
[1748668572352,30.0669954,154.87,154.86,0.03142851]
[1748668574627,1.6259,154.87,154.86,0.03142851]
[1748668574832,146.9,154.88,154.86,22.01549544]
[1748668575254,21.98406693,154.91,154.87,21.98406693]
[1748668575454,28.43958983,154.91,154.87,21.98406693]
[1748668575654,28.43958983,154.91,154.86,28.47271643]
[1748668575860,21.98406693,154.91,154.87,21.98406693]
[1748668577039,21.98406693,154.91,154.87,28.44104823]
[1748668579391,28.43947104,154.91,154.87,28.44104823]
[1748668581357,28.43947104,154.91,154.87,21.98406693]
[1748668582067,28.43947104,154.91,154.86,28.47275028]
[1748668582373,21.98406693,154.9,154.86,0.03142851]
[1748668582603,21.98406693,154.88,154.86,0.03142851]
[1748668582746,21.98406693,154.89,154.86,0.03142851]
[1748668583584,21.98406693,154.88,154.86,0.03142851]
[1748668583759,21.98406693,154.87,154.86,0.03142851]
[1748668583958,28.44105551,154.88,154.86,0.03142851]
[1748668584553,16.13840294,154.91,154.87,21.98406693]
[1748668584554,6.45548594,154.91,154.87,21.98406693]
[1748668584860,21.98406693,154.89,154.86,0.03142851]
[1748668585062,21.98406693,154.88,154.86,0.03142851]
[1748668585275,22.59388888,154.91,154.86,0.03142851]
[1748668585276,21.98406693,154.87,154.86,0.03142851]
[1748668585852,28.4410954,154.87,154.86,0.03142851]
[1748668586452,146.9,154.88,154.86,0.03142851]
[1748668586651,175.34078297,154.88,154.86,0.03142851]
[1748668587084,21.98406693,154.87,154.86,0.03142851]
[1748668587658,168.88406693,154.88,154.86,0.03142851]
[1748668588583,146.9,154.88,154.86,0.03142851]
[1748668589277,168.88406693,154.88,154.86,0.03142851]
[1748668589982,21.98406693,154.87,154.86,0.03142851]
[1748668590490,153.35671236,154.88,154.86,0.03142851]
[1748668590957,175.34077929,154.88,154.86,0.03142851]
[1748668591293,21.98406693,154.87,154.86,0.03142851]
[1748668592068,28.4410954,154.87,154.86,0.03142851]
[1748668592790,153.3567703,154.88,154.86,0.03142851]
[1748668593085,146.9,154.88,154.86,22.01549544]
[1748668593259,28.44070711,154.88,154.86,0.03142851]
[1748668594982,21.98406693,154.87,154.86,0.03142851]
[1748668596084,28.4410954,154.87,154.86,0.03142851]
[1748668602072,68.1010954,154.87,154.86,0.03142851]
[1748668602697,69.6162954,154.87,154.86,0.03142851]
[1748668603274,69.75845697,154.87,154.86,0.03142851]
[1748668603479,75.92455697,154.87,154.86,0.03142851]
[1748668605175,147.04216157,154.86,154.82,0.9038968]
[1748668605381,110.85893858,154.87,154.82,0.9038968]
[1748668605382,21.98406693,154.83,154.82,0.9038968]
[1748668606208,21.98406693,154.84,154.82,0.9038968]
[1748668606410,6.45864236,154.84,154.82,0.9038968]
[1748668606609,168.88406693,154.85,154.82,0.9038968]
[1748668606610,146.9,154.85,154.82,22.88796373]
[1748668606904,1.5152,154.87,154.83,21.98406693]
[1748668607106,186.56,154.9,154.84,21.98406693]
[1748668607275,21.98406693,154.89,154.84,21.98406693]
[1748668607899,21.98406693,154.88,154.83,21.98406693]
[1748668608089,6.45702847,154.87,154.83,21.98406693]
[1748668610091,6.45702847,154.87,154.83,28.44269387]
[1748668610489,163.03950307,154.9,154.84,21.98406693]
[1748668610490,153.35580356,154.9,154.84,21.98406693]
[1748668610693,153.35580356,154.9,154.83,6.45862694]
[1748668610694,146.9,154.9,154.88,21.98406693]
[1748668614511,23.50786693,154.89,154.83,6.45869663]
[1748668614694,186.54,154.9,154.86,21.98406693]
[1748668614928,192.99581697,154.9,154.86,21.98406693]
[1748668615096,186.54,154.9,154.86,21.98406693]
[1748668616027,192.99591684,154.9,154.86,21.98406693]
[1748668616735,192.99591684,154.9,154.87,21.98406693]
[1748668617420,186.54,154.9,154.87,21.98406693]
[1748668618042,186.54,154.9,154.88,21.98406693]
[1748668618224,146.9,154.9,154.88,21.98406693]
[1748668618705,12.89214071,154.91,154.89,21.98406693]
[1748668619324,12.89214071,154.91,154.88,21.98406693]
[1748668620104,19.34761157,154.91,154.88,21.98406693]
[1748668620599,19.34761157,154.91,154.87,21.98406693]
[1748668620600,41.3316785,154.91,154.87,21.98406693]
[1748668620913,21.98406693,154.9,154.85,21.98406693]
[1748668621097,21.98406693,154.88,154.83,21.98406693]
[1748668621528,28.4410954,154.87,154.82,22.88796373]
[1748668621736,21.98406693,154.85,154.82,0.9038968]
[1748668621912,6.45702847,154.87,154.82,0.9038968]
[1748668621913,21.98406693,154.84,154.82,0.9038968]
[1748668623435,6.45869663,154.83,154.82,0.9038968]
[1748668626364,28.44276356,154.83,154.82,0.9038968]
[1748668627721,163.04484304,154.85,154.82,0.9038968]
[1748668627722,6.45842583,154.84,154.82,0.9038968]
[1748668628418,28.44249276,154.84,154.82,0.9038968]
[1748668629245,21.98406693,154.83,154.82,0.9038968]
[1748668630253,28.44276356,154.83,154.82,0.9038968]
[1748668632241,6.45869663,154.83,154.82,0.9038968]
[1748668634250,28.44276356,154.83,154.82,0.9038968]
[1748668635077,6.45869663,154.83,154.82,0.9038968]
[1748668635235,28.44276356,154.83,154.82,0.9038968]
[1748668637969,6.45869663,154.83,154.82,0.9038968]
[1748668638170,28.44276356,154.83,154.82,0.9038968]
[1748668638642,6.45869663,154.83,154.82,0.9038968]
[1748668638845,28.44276356,154.83,154.82,0.9038968]
[1748668643276,6.45827951,154.84,154.82,0.9038968]
[1748668643451,28.44234644,154.84,154.82,0.9038968]
[1748668647762,175.34198638,154.85,154.82,0.9038968]
[1748668647961,153.35791945,154.85,154.82,0.9038968]
[1748668648177,7.98331328,154.86,154.82,22.88796373]
[1748668648675,6.45702847,154.87,154.82,29.34691822]
[1748668648887,6.45702847,154.87,154.84,21.98406693]
[1748668649067,146.9,154.89,154.84,21.98406693]
[1748668649262,146.9,154.89,154.85,21.98406693]
[1748668649983,153.35633544,154.89,154.86,21.98406693]
[1748668650207,153.35633544,154.89,154.85,21.98406693]
[1748668650376,146.9,154.89,154.86,21.98406693]
[1748668651560,153.35622467,154.89,154.86,21.98406693]
[1748668652768,146.9,154.89,154.86,21.98406693]
[1748668653000,26.0,154.91,154.86,21.98406693]
[1748668653001,26.0,154.91,154.87,21.98406693]
[1748668653376,26.0,154.91,154.88,21.98406693]
[1748668653884,191.99046143,154.93,154.89,21.98406693]
[1748668654896,165.99046143,154.93,154.9,21.98406693]
[1748668655098,162.75377608,154.93,154.9,21.98406693]
[1748668655390,162.75377608,154.93,154.91,21.98406693]
[1748668655391,146.9,154.93,154.91,21.98406693]
[1748668658405,61.52406693,154.96,154.91,21.98406693]
[1748668658406,6.45369474,154.95,154.91,21.98406693]
[1748668663080,6.45369474,154.95,154.88,21.98406693]
[1748668663081,21.98406693,154.93,154.88,21.98406693]
[1748668663382,21.98406693,154.92,154.87,32.28406693]
[1748668663793,21.98406693,154.92,154.88,21.98406693]
[1748668663980,61.52406693,154.93,154.89,21.98406693]
[1748668664376,39.54,154.93,154.87,10.3]
[1748668664600,21.98406693,154.92,154.88,21.98406693]
[1748668664980,6.45536117,154.91,154.88,21.98406693]
[1748668665302,6.45536117,154.91,154.85,21.98406693]
[1748668665513,21.98406693,154.89,154.84,21.98406693]
[1748668665710,21.98406693,154.88,154.83,32.22406693]
[1748668666079,21.98406693,154.87,154.83,32.22406693]
[1748668666280,21.98406693,154.87,154.82,19.55354566]
[1748668666281,21.98406693,154.87,154.82,22.88796373]
[1748668666783,21.98406693,154.84,154.82,0.9038968]
[1748668667180,6.45869663,154.83,154.82,0.9038968]
[1748668667591,6.45836817,154.84,154.82,0.9038968]
[1748668668717,6.45800851,154.85,154.82,22.88796373]
[1748668669305,6.45800851,154.85,154.82,0.9038968]
[1748668670481,6.45800851,154.85,154.82,22.88796373]
[1748668674101,6.45800851,154.85,154.82,0.9038968]
[1748668674282,6.45800851,154.85,154.82,22.88796373]
[1748668676004,16.1416844,154.88,154.83,21.98406693]
[1748668676005,21.98406693,154.88,154.83,21.98406693]
[1748668676215,26.0,154.88,154.84,21.98406693]
[1748668676412,28.44026164,154.89,154.84,21.98406693]
[1748668678111,28.44026164,154.89,154.82,0.9038968]
[1748668678408,21.98406693,154.88,154.84,21.98406693]
[1748668680388,6.45702847,154.87,154.84,21.98406693]
[1748668680605,6.45702847,154.87,154.83,21.98406693]
[1748668682015,22.59959965,154.87,154.82,0.9038968]
[1748668682514,6.45869595,154.84,154.82,0.9038968]
[1748668683915,6.45793578,154.85,154.82,0.9038968]
[1748668684413,21.98406693,154.84,154.82,0.9038968]
[1748668684605,6.45869663,154.83,154.82,0.9038968]
[1748668686989,28.44276356,154.83,154.82,0.9038968]
[1748668687718,6.45790219,154.85,154.82,0.9038968]
[1748668687912,28.44196912,154.85,154.82,0.9038968]
[1748668688100,28.4416094,154.86,154.82,0.9038968]
[1748668688302,28.44122857,154.87,154.82,22.88796373]
[1748668688796,28.44122857,154.87,154.82,29.34691063]
[1748668689000,153.35670748,154.88,154.84,21.98406693]
[1748668689307,153.35662388,154.88,154.85,21.98406693]
[1748668689613,153.35662388,154.88,154.84,32.36406693]
[1748668691311,175.34069081,154.88,154.84,32.36406693]
[1748668691514,175.34069081,154.88,154.84,10.38]
[1748668699434,21.98406693,154.86,154.82,0.9038968]
[1748668699930,21.98406693,154.85,154.82,0.9038968]
[1748668700421,21.98406693,154.84,154.82,0.9038968]
[1748668700812,21.98406693,154.85,154.82,0.9038968]
[1748668701722,6.45827951,154.84,154.82,0.9038968]
[1748668703027,6.45796015,154.85,154.82,0.9038968]
[1748668704407,6.45796015,154.85,154.82,22.88796373]
[1748668705133,6.45796015,154.85,154.82,0.9038968]
[1748668705721,6.45702847,154.87,154.83,21.98406693]
[1748668706639,146.9,154.88,154.83,21.98406693]
[1748668706809,146.9,154.88,154.86,21.98406693]
[1748668707010,153.35666199,154.88,154.85,21.98406693]
[1748668708723,153.35666199,154.88,154.84,32.36406693]
[1748668708905,21.98406693,154.87,154.84,10.38]
[1748668709324,21.98406693,154.86,154.84,10.38]
[1748668709712,195.49819091,154.88,154.84,10.38]
[1748668710036,6.45786244,154.85,154.84,10.38]
[1748668710628,6.45786244,154.85,154.82,0.9038968]
[1748668711222,28.44192937,154.85,154.82,0.9038968]
[1748668711731,6.45786244,154.85,154.82,0.9038968]
[1748668711912,6.45744543,154.86,154.82,0.9038968]
[1748668712232,6.45744543,154.86,154.82,22.88796373]
[1748668714323,28.44151236,154.86,154.82,0.9038968]
[1748668716333,44.58512594,154.86,154.82,0.9038968]
[1748668716642,21.98406693,154.85,154.82,0.9038968]
[1748668718838,6.45827951,154.84,154.82,0.9038968]
[1748668719635,23.48536693,154.83,154.82,0.9038968]
[1748668720220,49.76969007,154.83,154.75,2.53848853]
[1748668720534,21.98406693,154.8,154.75,24.52255546]
[1748668720735,6.46036565,154.79,154.75,24.52255546]
[1748668720912,6.46036565,154.79,154.76,21.98406693]
[1748668721941,6.45994832,154.8,154.76,21.98406693]
[1748668722748,175.34329655,154.82,154.78,21.98406693]
[1748668722920,146.9,154.82,154.79,21.98406693]
[1748668723638,146.9,154.82,154.8,21.98406693]
[1748668723813,146.9,154.82,154.76,64.75120987]
[1748668723814,6.45786244,154.85,154.81,21.98406693]
[1748668728046,28.44192937,154.85,154.81,21.98406693]
[1748668728847,28.44192937,154.85,154.8,21.98406693]
[1748668730938,28.44192937,154.85,154.8,32.26406693]
[1748668731838,28.44192937,154.85,154.81,21.98406693]
[1748668732330,28.44192937,154.85,154.8,16.73993294]
[1748668732522,28.44192937,154.85,154.81,21.98406693]
[1748668733349,6.45786244,154.85,154.81,21.98406693]
[1748668734649,28.44192937,154.85,154.8,32.26406693]
[1748668734847,28.44192937,154.85,154.8,10.28]
[1748668735059,21.98406693,154.82,154.8,10.28]
[1748668735432,21.98406693,154.83,154.8,10.28]
[1748668735833,21.98406693,154.84,154.8,10.28]
[1748668737158,6.45869663,154.83,154.8,10.28]
[1748668737336,6.45869663,154.83,154.8,32.26406693]
[1748668737843,6.45846407,154.84,154.8,32.26406693]
[1748668738947,6.45786244,154.85,154.81,21.98406693]
[1748668739451,6.45786244,154.85,154.8,10.28]
[1748668739452,21.98406693,154.83,154.8,10.28]
[1748668741059,21.98406693,154.84,154.8,10.28]
[1748668741644,21.98406693,154.83,154.8,10.28]
[1748668742258,21.98406693,154.81,154.76,32.26406693]
[1748668742558,21.98406693,154.81,154.76,10.28]
[1748668742736,21.98406693,154.8,154.76,10.28]
[1748668743134,6.46036565,154.79,154.76,10.28]
[1748668743342,28.44443258,154.79,154.76,10.28]
[1748668744060,28.44443258,154.79,154.75,2.53848853]
[1748668744061,21.98406693,154.77,154.75,2.53848853]
[1748668744266,21.98406693,154.78,154.75,2.53848853]
[1748668745151,6.46120049,154.77,154.75,2.53848853]
[1748668747064,42.14999633,154.8,154.75,24.52255546]
[1748668747065,28.44457951,154.79,154.75,24.52255546]
[1748668748569,28.44457951,154.79,154.75,2.53848853]
[1748668749541,47.98406693,154.76,154.75,2.53848853]
[1748668749864,26.0,154.76,154.75,2.53848853]
[1748668750440,47.98406693,154.76,154.75,2.53848853]
[1748668751135,32.46161798,154.76,154.75,2.53848853]
[1748668752282,26.0,154.76,154.75,2.53848853]
[1748668752484,32.46161798,154.76,154.75,2.53848853]
[1748668752685,30.53767876,154.77,154.75,2.53848853]
[1748668752686,8.55361183,154.77,154.75,2.53848853]
[1748668752863,8.55361183,154.77,154.75,24.52255546]
[1748668753895,6.46043349,154.79,154.75,24.52255546]
[1748668754587,28.44450042,154.79,154.75,2.53848853]
[1748668754787,21.98406693,154.78,154.75,2.53848853]
[1748668755309,28.44450042,154.79,154.75,2.53848853]
[1748668755490,28.44450042,154.79,154.75,24.52255546]
[1748668757511,217.49405508,154.8,154.75,2.53848853]
[1748668757668,195.50998815,154.8,154.75,2.53848853]
[1748668757872,21.98406693,154.77,154.75,2.53848853]
[1748668759167,6.46161798,154.76,154.75,2.53848853]
[1748668764084,21.98406693,154.77,154.75,2.53848853]
[1748668765096,38.13612356,154.78,154.75,2.53848853]
[1748668765479,6.46120049,154.77,154.75,2.53848853]
[1748668766809,6.46036565,154.79,154.75,24.52255546]
[1748668768407,6.46036565,154.79,154.76,21.98406693]
[1748668770603,146.9,154.8,154.76,21.98406693]
[1748668770804,146.9,154.8,154.79,21.98406693]
[1748668771108,8.54082121,154.81,154.79,21.98406693]
[1748668771807,15.00045721,154.81,154.76,6.46153451]
[1748668771987,15.00045721,154.81,154.77,21.98406693]
[1748668772307,15.00045721,154.81,154.78,21.98406693]
[1748668772683,21.98406693,154.8,154.76,21.98406693]
[1748668773886,21.98406693,154.8,154.75,2.53848853]
[1748668774105,21.98406693,154.8,154.75,24.52255546]
[1748668774293,28.44484997,154.78,154.75,2.53848853]
[1748668774729,21.98406693,154.77,154.75,2.53848853]
[1748668774901,21.98406693,154.76,154.75,2.53848853]
[1748668775788,21.98406693,154.77,154.75,2.53848853]
[1748668777327,28.44568491,154.76,154.75,2.53848853]
[1748668780197,6.46161798,154.76,154.75,2.53848853]
[1748668781225,32.46136211,154.77,154.75,2.53848853]
[1748668781402,6.46088663,154.78,154.75,2.53848853]
[1748668781715,6.46088663,154.78,154.75,24.52255546]
[1748668782495,179.36047748,154.79,154.75,24.52255546]
[1748668782693,153.36047748,154.79,154.75,24.52255546]
[1748668783010,153.36047748,154.79,154.76,21.98406693]
[1748668783823,153.36047748,154.79,154.77,21.98406693]
[1748668785129,146.9,154.79,154.77,21.98406693]
[1748668786206,146.9,154.79,154.78,21.98406693]
[1748668789217,6.45866386,154.84,154.78,28.44484997]
[1748668789415,6.45866386,154.84,154.81,21.98406693]
[1748668789616,32.45866386,154.84,154.81,21.98406693]
[1748668791815,210.69096693,154.85,154.82,21.98406693]
[1748668791816,181.00492959,154.85,154.82,21.98406693]
[1748668792131,181.00492959,154.85,154.81,21.98406693]
[1748668794521,181.00492959,154.85,154.82,21.98406693]
[1748668795733,174.5469,154.85,154.82,21.98406693]
[1748668796632,172.9,154.85,154.83,21.98406693]
[1748668796836,146.9,154.85,154.83,21.98406693]
[1748668797037,146.9,154.85,154.81,6.45948951]
[1748668797038,15.25150911,154.88,154.84,21.98406693]
[1748668797237,15.25150911,154.88,154.85,21.98406693]
[1748668797238,55.33150911,154.88,154.85,21.98406693]
[1748668797444,15.25150911,154.88,154.85,21.98406693]
[1748668801034,15.25150911,154.88,154.8,40.63371579]
[1748668801035,15.25150911,154.88,154.84,21.98406693]
[1748668801535,31.39303803,154.88,154.84,21.98406693]
[1748668802632,53.37710496,154.88,154.84,21.98406693]
[1748668805215,31.39303803,154.88,154.84,21.98406693]
[1748668805757,15.25150911,154.88,154.84,21.98406693]
[1748668805966,15.25150911,154.88,154.85,21.98406693]
[1748668806431,15.25150911,154.88,154.86,21.98406693]
[1748668806623,8.7947829,154.88,154.86,21.98406693]
[1748668807346,15.25142511,154.88,154.86,21.98406693]
[1748668808443,15.25142511,154.88,154.83,6.45853494]
[1748668808444,15.25142511,154.88,154.85,21.98406693]
[1748668811317,15.25142511,154.88,154.86,21.98406693]
[1748668811746,8.7947829,154.88,154.87,21.98406693]
[1748668812627,6.45587856,154.9,154.87,21.98406693]